bitfinex-derivatives/quotes_BTCF0:USTF0_20260107
["timestamp","ask_amount","ask_price","bid_price","bid_amount"]
[1767795185003,0.010907,91747.0,91725.0,0.09276]
[1767795185004,0.09401551,91749.0,91735.0,0.010909]
[1767795185292,0.010908,91744.0,91729.0,0.010909]
[1767795185693,0.010908,91744.0,91731.0,0.010909]
[1767795185894,0.010906,91758.0,91731.0,0.010909]
[1767795185895,0.010907,91750.0,91731.0,0.09773964]
[1767795186199,0.010907,91748.0,91734.0,0.010909]
[1767795186500,0.18677551,91758.0,91728.0,0.09773964]
[1767795186704,0.09401551,91757.0,91735.0,0.010909]
[1767795186998,0.02248663,91754.0,91732.0,0.010909]
[1767795187197,0.02248663,91754.0,91725.0,0.09276]
[1767795187198,0.010908,91741.0,91725.0,0.01091]
[1767795187402,0.10492351,91744.0,91729.0,0.010909]
[1767795188110,0.10492351,91744.0,91726.0,0.09276]
[1767795188111,0.010908,91742.0,91728.0,0.010909]
[1767795188600,0.010908,91742.0,91726.0,0.09276]
[1767795188601,0.010909,91732.0,91720.0,0.09276]
[1767795189003,0.09401551,91734.0,91720.0,0.09276]
[1767795189303,0.09401551,91734.0,91710.0,0.09773964]
[1767795189304,0.010909,91728.0,91713.0,0.01103215]
[1767795189505,0.01091,91727.0,91714.0,0.09276]
[1767795189894,0.10866877,91727.0,91713.0,0.00012115]
[1767795190294,0.09775877,91727.0,91713.0,0.00012115]
[1767795190595,0.09775877,91725.0,91713.0,0.00012115]
[1767795190791,0.010911,91713.0,91699.0,0.010913]
[1767795190993,0.010912,91711.0,91699.0,0.09276]
[1767795191205,0.12091535,91709.0,91706.0,1e-08]
[1767795191408,0.02315658,91693.0,91664.0,0.09276]
[1767795191701,0.09775877,91686.0,91664.0,0.09276]
[1767795191903,9.18e-05,91685.0,91672.0,0.010916]
[1767795192398,9.18e-05,91685.0,91660.0,0.17844658]
[1767795192697,0.02315658,91671.0,91649.0,0.00218225]
[1767795192898,0.09775877,91651.0,91639.0,0.01092]
[1767795193104,0.02315658,91680.0,91640.0,0.17844658]
[1767795193402,0.065463,91722.0,91637.0,0.01092]
[1767795193403,0.05855789,91697.0,91671.0,0.010916]
[1767795193605,0.010913,91695.0,91670.0,0.17844658]
[1767795193897,0.010914,91692.0,91664.0,0.010917]
[1767795194103,0.09276,91691.0,91663.0,0.09276]
[1767795194300,0.06876,91711.0,91660.0,0.17844658]
[1767795194301,4.794e-05,91690.0,91664.0,0.10701693]
[1767795194509,4.794e-05,91690.0,91667.0,0.010917]
[1767795195100,0.09775877,91689.0,91674.0,0.010916]
[1767795195307,4.794e-05,91690.0,91670.0,0.17844658]
[1767795195308,4.794e-05,91690.0,91673.0,0.010916]
[1767795195504,0.08780794,91693.0,91677.0,0.010916]
[1767795195709,0.09775877,91707.0,91681.0,0.10504095]
[1767795196008,0.09775877,91707.0,91680.0,0.17844658]
[1767795196009,0.09275877,91707.0,91683.0,0.09412595]
[1767795196210,0.09275877,91707.0,91686.0,0.010914]
[1767795196508,0.09276,91708.0,91686.0,0.010914]
[1767795196709,0.09276,91708.0,91679.0,0.09276]
[1767795196710,0.08776,91708.0,91690.0,0.010914]
[1767795196914,0.09276,91715.0,91699.0,0.00106828]
[1767795197209,0.02315658,91721.0,91699.0,0.00106828]
[1767795197403,0.01815658,91721.0,91710.0,0.00149219]
[1767795197606,0.01815658,91721.0,91695.0,0.010913]
[1767795197802,0.01815658,91721.0,91691.0,0.11706906]
[1767795197803,0.09276,91724.0,91697.0,0.02294311]
[1767795198109,0.09276,91724.0,91703.0,0.010912]
[1767795198303,0.09775877,91723.0,91703.0,0.09276]
[1767795198707,0.09775877,91715.0,91689.0,0.09276]
[1767795198905,0.09775877,91715.0,91691.0,0.11706906]
[1767795199104,0.09775877,91723.0,91692.0,0.11706906]
[1767795199410,0.12091535,91721.0,91692.0,0.11706906]
[1767795199605,0.12091535,91721.0,91699.0,0.010913]
[1767795199911,0.12091535,91721.0,91700.0,0.09276]
[1767795200406,0.02315658,91714.0,91694.0,0.010913]
[1767795200707,0.10867177,91698.0,91684.0,0.09276]
[1767795200906,0.09775877,91687.0,91671.0,0.09276]
[1767795201105,0.09775877,91683.0,91671.0,0.06506371]
[1767795201309,0.09775877,91683.0,91657.0,0.10504395]
[1767795201502,0.09775877,91683.0,91659.0,0.010918]
[1767795201697,0.09775877,91683.0,91663.0,0.010917]
[1767795202006,0.09775877,91683.0,91667.0,0.010917]
[1767795202206,0.09775877,91685.0,91667.0,0.010917]
[1767795202411,0.09775877,91685.0,91663.0,0.09276]
[1767795202607,0.09775877,91685.0,91666.0,0.010917]
[1767795202812,0.09775877,91685.0,91664.0,0.09276]
[1767795203402,0.19051877,91692.0,91664.0,0.09276]
[1767795203803,0.09775877,91691.0,91664.0,0.09276]
[1767795204505,0.00218154,91679.0,91664.0,0.09276]
[1767795204701,0.09276,91692.0,91670.0,0.02294311]
[1767795204918,0.0928,91700.0,91677.0,0.11706906]
[1767795205106,0.0928,91700.0,91684.0,0.010915]
[1767795205511,0.0928,91700.0,91680.0,0.18936158]
[1767795205708,0.19055877,91713.0,91690.0,0.17844658]
[1767795205900,0.10867077,91711.0,91688.0,0.103714]
[1767795206105,0.0928,91713.0,91694.0,0.010913]
[1767795206308,0.0928,91713.0,91691.0,0.11706906]
[1767795206500,0.09775877,91728.0,91703.0,0.09412595]
[1767795206713,0.09775877,91728.0,91711.0,0.010911]
[1767795206909,0.0928,91732.0,91705.0,0.11706906]
[1767795207120,0.0928,91732.0,91704.0,0.0928]
[1767795207121,0.0928,91732.0,91716.0,0.010911]
[1767795207418,0.0928,91732.0,91719.0,0.01091]
[1767795207606,0.0928,91732.0,91707.0,0.0928]
[1767795207607,0.02315658,91730.0,91707.0,0.0928]
[1767795207805,0.09775877,91729.0,91708.0,0.0928]
[1767795208010,0.09775877,91729.0,91709.0,0.0928]
[1767795208312,0.10866777,91729.0,91710.0,0.0928]
[1767795208512,0.09775877,91738.0,91712.0,0.11706906]
[1767795208710,0.0928,91739.0,91717.0,0.010911]
[1767795209305,0.0928,91739.0,91713.0,0.010911]
[1767795209508,0.0928,91739.0,91719.0,0.01091]
[1767795209808,0.0928,91739.0,91720.0,0.0928]
[1767795210010,0.0928,91739.0,91721.0,0.0928]
[1767795210211,0.19055877,91739.0,91721.0,0.0928]
[1767795211910,0.19055877,91739.0,91725.0,0.01091]
[1767795212115,0.02315658,91745.0,91721.0,0.0928]
[1767795212309,0.02315658,91745.0,91727.0,0.010909]
[1767795212514,0.00218011,91739.0,91727.0,0.010909]
[1767795212713,0.00218011,91739.0,91722.0,0.01091]
[1767795213015,0.09276,91747.0,91722.0,0.02703601]
[1767795213210,0.010899,91815.0,91727.0,0.09730507]
[1767795213211,0.09276,91755.0,91727.0,0.09730507]
[1767795213620,0.09276,91755.0,91736.0,0.010909]
[1767795213814,0.09276,91755.0,91739.0,0.010908]
[1767795214014,0.09276,91755.0,91735.0,0.010909]
[1767795214312,0.09276,91755.0,91732.0,0.19006507]
[1767795214313,0.09276,91762.0,91744.0,0.010908]
[1767795214508,0.02539987,91767.0,91740.0,0.09730507]
[1767795214709,0.0130844,91769.0,91747.0,0.010907]
[1767795215111,0.010905,91767.0,91745.0,0.09276]
[1767795215311,0.0021794,91769.0,91747.0,0.010907]
[1767795215609,0.010905,91766.0,91747.0,0.010907]
[1767795216517,0.0021794,91769.0,91745.0,0.09276]
[1767795216723,0.010904,91771.0,91749.0,0.12434108]
[1767795216924,0.010904,91771.0,91752.0,0.09730507]
[1767795217217,0.09639503,91779.0,91753.0,0.09730507]
[1767795217417,0.010904,91778.0,91756.0,0.010906]
[1767795217612,0.010904,91778.0,91757.0,0.09276]
[1767795218018,0.09639503,91779.0,91759.0,0.010906]
[1767795218518,0.09639503,91779.0,91762.0,0.010905]
[1767795218716,0.010904,91775.0,91757.0,0.09276]
[1767795219020,0.10729903,91779.0,91757.0,0.09276]
[1767795219219,0.010904,91779.0,91758.0,0.10821107]
[1767795219519,0.09276,91783.0,91758.0,0.09730507]
[1767795220020,0.09639503,91782.0,91758.0,0.09730507]
[1767795220417,0.010904,91778.0,91759.0,0.010906]
[1767795220618,0.010904,91778.0,91759.0,0.00872518]
[1767795220816,0.010904,91778.0,91758.0,0.09730507]
[1767795220817,0.010904,91776.0,91758.0,0.09730507]
[1767795221118,0.11815987,91783.0,91757.0,0.09276]
[1767795221119,0.09639503,91778.0,91757.0,0.09276]
[1767795221314,0.010904,91774.0,91757.0,0.09276]
[1767795221513,0.10729903,91778.0,91758.0,0.010906]
[1767795222112,0.09639503,91778.0,91760.0,0.010906]
[1767795222318,0.09276,91783.0,91760.0,0.010906]
[1767795222719,0.09639503,91782.0,91760.0,0.010906]
[1767795223320,0.010903,91779.0,91760.0,0.010906]
[1767795223519,0.1326979,91779.0,91760.0,0.010906]
[1767795223717,0.1217949,91779.0,91757.0,0.09276]
[1767795224116,0.010904,91771.0,91757.0,0.09276]
[1767795224318,0.010904,91774.0,91757.0,0.09276]
[1767795224518,0.010904,91774.0,91757.0,0.103666]
[1767795224714,0.010904,91777.0,91759.0,0.010906]
[1767795225022,0.010904,91777.0,91757.0,0.09276]
[1767795225410,0.09639503,91778.0,91757.0,0.09276]
[1767795225616,0.010903,91782.0,91757.0,0.09276]
[1767795225617,0.010903,91782.0,91757.0,0.19006507]
[1767795225816,0.010903,91780.0,91757.0,0.19006507]
[1767795226009,0.010904,91771.0,91757.0,0.09276]
[1767795226324,0.010904,91771.0,91749.0,0.09730507]
[1767795226325,0.010904,91771.0,91758.0,0.09276]
[1767795226725,0.010904,91774.0,91758.0,0.103666]
[1767795227314,0.010904,91774.0,91758.0,0.09276]
[1767795228419,0.010904,91777.0,91761.0,0.010905]
[1767795228622,0.02539987,91784.0,91759.0,0.12434108]
[1767795228924,0.010904,91777.0,91759.0,0.12434108]
[1767795229129,0.010904,91777.0,91760.0,0.09272]
[1767795229531,0.010904,91777.0,91760.0,0.103626]
[1767795229828,0.010904,91773.0,91757.0,0.010906]
[1767795230019,0.010904,91773.0,91758.0,0.09272]
[1767795230020,0.1326989,91773.0,91758.0,0.09272]
[1767795230333,0.1326989,91773.0,91745.0,0.02703601]
[1767795230334,0.010905,91768.0,91759.0,0.09272]
[1767795230514,0.09639503,91771.0,91745.0,0.02703601]
[1767795230830,0.09639503,91771.0,91746.0,0.19002507]
[1767795230831,0.010905,91769.0,91746.0,0.19002507]
[1767795231016,0.010904,91772.0,91754.0,0.010906]
[1767795231531,0.010904,91774.0,91750.0,0.09730507]
[1767795231725,0.09272,91776.0,91758.0,0.010906]
[1767795231927,0.1326989,91771.0,91754.0,0.010906]
[1767795232430,0.10729903,91771.0,91754.0,0.010906]
[1767795233332,0.09272,91776.0,91755.0,0.010906]
[1767795233930,0.09272,91776.0,91753.0,0.09730507]
[1767795234538,0.09272,91776.0,91753.0,0.09230507]
[1767795235227,0.010904,91773.0,91757.0,0.010906]
[1767795235636,0.010904,91773.0,91759.0,0.010906]
[1767795235834,0.010904,91771.0,91756.0,0.010906]
[1767795236328,0.09272,91776.0,91754.0,0.02703601]
[1767795236524,0.010904,91772.0,91755.0,0.02703601]
[1767795236729,0.010904,91771.0,91755.0,0.12434108]
[1767795236928,0.010905,91769.0,91755.0,0.12434108]
[1767795237123,0.010905,91769.0,91756.0,0.09730507]
[1767795237330,0.010904,91772.0,91757.0,0.09730507]
[1767795237831,0.09272,91776.0,91754.0,0.12434108]
[1767795238244,0.09272,91776.0,91754.0,0.13524708]
[1767795238445,0.010904,91772.0,91756.0,0.10821107]
[1767795238640,0.010904,91775.0,91761.0,0.09730507]
[1767795239138,0.010904,91775.0,91756.0,0.010906]
[1767795239335,0.010904,91773.0,91756.0,0.010906]
[1767795239545,0.010904,91773.0,91756.0,0.10821107]
[1767795239751,0.09272,91776.0,91756.0,0.09730507]
[1767795240142,0.09272,91783.0,91762.0,0.02703601]
[1767795240450,0.010904,91776.0,91763.0,0.09730507]
[1767795240851,0.010904,91776.0,91763.0,0.09230507]
[1767795241251,0.09272,91794.0,91771.0,0.010904]
[1767795241448,0.103622,91794.0,91771.0,0.010904]
[1767795241748,0.09272,91794.0,91771.0,0.010904]
[1767795242052,0.09272,91794.0,91781.0,0.010903]
[1767795242249,0.09272,91794.0,91771.0,0.02405522]
[1767795242455,0.00217868,91799.0,91771.0,0.02405522]
[1767795242643,0.00217868,91799.0,91784.0,0.010903]
[1767795243249,0.00217868,91799.0,91780.0,0.010903]
[1767795243456,0.00217868,91799.0,91782.0,0.010903]
[1767795243649,0.0109,91809.0,91788.0,0.11417893]
[1767795243842,0.0109,91812.0,91791.0,0.010902]
[1767795244043,0.010899,91813.0,91794.0,0.010902]
[1767795244850,0.11748032,91814.0,91789.0,0.103622]
[1767795245050,0.0109,91810.0,91791.0,0.010902]
[1767795245256,0.103619,91816.0,91795.0,0.010901]
[1767795245446,0.010899,91814.0,91795.0,0.10102471]
[1767795245950,0.0109,91812.0,91795.0,0.09012371]
[1767795246155,0.0109,91812.0,91795.0,0.11417893]
[1767795246450,0.0109,91812.0,91794.0,0.010902]
[1767795246451,0.09272,91816.0,91798.0,0.09012371]
[1767795246845,0.09334963,91821.0,91798.0,0.08512371]
[1767795247040,0.09272,91823.0,91789.0,0.09272]
[1767795247041,0.0109,91809.0,91791.0,0.03495722]
[1767795247246,0.0109,91812.0,91791.0,0.02405522]
[1767795247447,0.0109,91810.0,91792.0,0.010902]
[1767795247644,0.0109,91810.0,91792.0,0.02405522]
[1767795247851,0.010899,91814.0,91794.0,0.010902]
[1767795248050,0.09272,91823.0,91797.0,0.02405522]
[1767795248254,0.010899,91820.0,91801.0,0.010901]
[1767795248656,0.010899,91818.0,91802.0,0.09272]
[1767795249043,0.010898,91821.0,91803.0,0.12507993]
[1767795249241,0.0109,91811.0,91799.0,0.09012371]
[1767795249442,0.11748032,91820.0,91800.0,0.09272]
[1767795249656,0.11748032,91820.0,91801.0,0.09272]
[1767795249855,0.010899,91814.0,91802.0,0.09272]
[1767795250245,0.010899,91814.0,91795.0,0.010901]
[1767795250246,0.0109,91809.0,91791.0,0.010902]
[1767795250443,0.0109,91810.0,91791.0,0.010902]
[1767795250643,0.10424963,91810.0,91792.0,0.09272]
[1767795250852,0.0109,91807.0,91788.0,0.09012371]
[1767795251058,0.0109,91805.0,91789.0,0.09272]
[1767795251258,0.09334963,91810.0,91789.0,0.09272]
[1767795251259,0.0109,91808.0,91789.0,0.09272]
[1767795251459,0.0109,91808.0,91790.0,0.010902]
[1767795251856,0.0109,91808.0,91791.0,0.09272]
[1767795252056,0.0109,91808.0,91792.0,0.09272]
[1767795252654,0.02413069,91815.0,91792.0,0.09272]
[1767795252853,0.09334963,91815.0,91797.0,0.010901]
[1767795253560,0.103619,91819.0,91797.0,0.010901]
[1767795253756,0.11748032,91818.0,91793.0,0.11417893]
[1767795253957,0.02413069,91803.0,91779.0,0.12508193]
[1767795254160,0.12838132,91803.0,91781.0,0.010903]
[1767795254356,0.010901,91801.0,91781.0,0.010903]
[1767795254668,0.11748032,91797.0,91782.0,0.09268]
[1767795254963,0.11748032,91797.0,91773.0,0.02405522]
[1767795254964,0.11748032,91797.0,91780.0,0.09268]
[1767795255354,0.09334963,91797.0,91780.0,0.103583]
[1767795255554,0.010901,91802.0,91783.0,0.010903]
[1767795256560,0.010901,91800.0,91780.0,0.19370671]
[1767795256753,0.010901,91800.0,91782.0,0.10102671]
[1767795256960,0.010901,91800.0,91783.0,0.09012371]
[1767795257164,0.11748032,91794.0,91769.0,0.11417893]
[1767795257360,0.010903,91785.0,91770.0,0.09268]
[1767795257966,0.010903,91784.0,91770.0,0.09268]
[1767795258658,0.09334963,91781.0,91765.0,0.09268]
[1767795258861,0.11748032,91779.0,91764.0,0.09268]
[1767795259360,0.11748032,91778.0,91756.0,0.00011874]
[1767795259560,0.010905,91770.0,91753.0,0.09268]
[1767795259960,0.010905,91770.0,91753.0,0.08768]
[1767795260159,0.010905,91770.0,91754.0,0.010906]
[1767795260560,0.010905,91768.0,91753.0,0.08768]
[1767795260760,0.010905,91768.0,91751.0,0.010907]
[1767795261060,0.010905,91768.0,91752.0,0.09268]
[1767795261863,0.010906,91759.0,91746.0,0.09012371]
[1767795262171,0.00010357,91769.0,91747.0,0.09272]
[1767795262172,0.010905,91762.0,91747.0,0.09272]
[1767795262969,0.010906,91759.0,91745.0,0.09272]
[1767795263370,0.010905,91762.0,91745.0,0.09272]
[1767795263865,0.09334963,91766.0,91748.0,0.010907]
[1767795264059,0.010905,91764.0,91745.0,0.103627]
[1767795264670,0.00010357,91769.0,91750.0,0.09012371]
[1767795265174,0.00010357,91769.0,91736.0,0.09012371]
[1767795265175,0.010907,91753.0,91736.0,0.09012371]
[1767795265468,0.00010623,91752.0,91737.0,0.09272]
[1767795265663,0.00010623,91752.0,91731.0,0.010909]
[1767795265860,0.00010623,91752.0,91733.0,0.010909]
[1767795265861,0.01101323,91752.0,91733.0,0.010909]
[1767795266169,0.00010623,91752.0,91736.0,0.010909]
[1767795266370,0.010907,91751.0,91734.0,0.09272]
[1767795266870,0.010907,91751.0,91734.0,0.18284371]
[1767795268771,0.010907,91747.0,91734.0,0.18284371]
[1767795268970,0.02413069,91750.0,91727.0,0.09012371]
[1767795269170,0.010908,91745.0,91728.0,0.09272]
[1767795269762,0.010907,91748.0,91728.0,0.09272]
[1767795269966,0.010907,91748.0,91729.0,0.010909]
[1767795270369,0.010907,91751.0,91729.0,0.11417893]
[1767795270568,0.010907,91748.0,91730.0,0.09012371]
[1767795270772,0.010907,91748.0,91731.0,0.09272]
[1767795271660,0.00010623,91752.0,91731.0,0.18284371]
[1767795271862,0.00010623,91752.0,91733.0,0.10969866]
[1767795272074,0.00010623,91752.0,91733.0,0.13262706]
[1767795272276,0.00010623,91752.0,91734.0,0.09878966]
[1767795272475,0.01101323,91752.0,91734.0,0.09878966]
[1767795272675,0.01101323,91752.0,91734.0,0.10969866]
[1767795273871,0.00010623,91752.0,91736.0,0.010908]
[1767795274179,0.00010623,91752.0,91735.0,0.09878966]
[1767795275173,0.010907,91751.0,91735.0,0.09878966]
[1767795276669,0.010907,91751.0,91736.0,0.010909]
[1767795276973,0.00010623,91752.0,91738.0,0.010908]
[1767795277376,0.00883283,91754.0,91738.0,0.010908]
[1767795277679,0.010907,91752.0,91735.0,0.09878966]
[1767795277878,1.010906,91755.0,91739.0,0.12171806]
[1767795278073,1.010906,91755.0,91740.0,0.0229284]
[1767795278484,1.0,91755.0,91741.0,0.010908]
[1767795278774,1.0,91755.0,91727.0,0.01091]
[1767795278775,1.0,91755.0,91744.0,0.0229284]
[1767795278967,1.0,91755.0,91742.0,0.1156484]
[1767795279172,1.0,91755.0,91743.0,0.12171806]
[1767795281479,0.46463688,91755.0,91745.0,0.12171806]
[1767795282081,0.46463688,91755.0,91745.0,0.0229284]
[1767795282683,0.46463688,91755.0,91742.0,0.09272]
[1767795283184,0.46463688,91755.0,91742.0,0.10843862]
[1767795284682,0.46463688,91755.0,91742.0,0.11194772]
[1767795284983,0.010905,91768.0,91752.0,0.010907]
[1767795285178,0.11053896,91768.0,91752.0,0.010907]
[1767795285577,0.11053896,91768.0,91749.0,0.010907]
[1767795286076,0.010905,91766.0,91749.0,0.010907]
[1767795287488,0.010905,91766.0,91749.0,0.0338354]
[1767795288386,0.11053896,91768.0,91752.0,0.010907]
[1767795288686,0.11053896,91768.0,91752.0,0.09272]
[1767795288687,0.09963396,91768.0,91752.0,0.09272]
[1767795288879,0.010905,91764.0,91752.0,0.09272]
[1767795289281,0.010905,91767.0,91752.0,0.09272]
[1767795289485,0.010905,91765.0,91752.0,0.09272]
[1767795290382,0.010905,91766.0,91752.0,0.12683703]
[1767795290783,0.010905,91764.0,91752.0,0.09272]
[1767795291086,0.09963396,91768.0,91752.0,0.09272]
[1767795291887,0.010905,91765.0,91752.0,0.09272]
[1767795292187,0.09963396,91768.0,91752.0,0.09272]
[1767795292188,0.11053896,91768.0,91752.0,0.09272]
[1767795292581,0.09368959,91777.0,91758.0,0.17585158]
[1767795292778,0.09368959,91777.0,91760.0,0.04402707]
[1767795293181,0.010904,91776.0,91760.0,0.17585158]
[1767795293384,0.09368959,91777.0,91760.0,0.17585158]
[1767795293583,0.09368959,91785.0,91764.0,0.03276402]
[1767795293786,0.09368959,91779.0,91765.0,0.09272]
[1767795293982,0.010904,91776.0,91765.0,0.09272]
[1767795294180,0.09368959,91779.0,91765.0,0.09272]
[1767795294388,0.09368959,91776.0,91765.0,0.09272]
[1767795294587,0.10459359,91776.0,91765.0,0.09272]
[1767795295187,0.10459359,91776.0,91760.0,0.14273051]
[1767795295389,0.10459359,91776.0,91761.0,0.09272]
[1767795295886,0.10459359,91776.0,91762.0,0.09272]
[1767795297088,0.09368959,91776.0,91762.0,0.09272]
[1767795297389,0.10459259,91782.0,91762.0,0.12327808]
[1767795298386,0.09368959,91782.0,91765.0,0.010905]
[1767795298780,0.09368959,91782.0,91763.0,0.03020956]
[1767795299284,0.010903,91780.0,91762.0,0.1223259]
[1767795299479,0.010904,91778.0,91763.0,0.02926055]
[1767795299792,0.09368959,91767.0,91758.0,0.09272]
[1767795299992,0.09368959,91766.0,91758.0,0.09272]
[1767795300687,0.03289487,91756.0,91737.0,0.010908]
[1767795300994,0.03289487,91756.0,91735.0,0.1203]
[1767795300995,0.09368959,91754.0,91738.0,0.09272]
[1767795301194,0.09368959,91754.0,91739.0,0.010908]
[1767795301491,0.09368959,91777.0,91750.0,0.02849318]
[1767795301691,0.09368959,91777.0,91756.0,0.10938249]
[1767795301893,0.09946065,91786.0,91760.0,0.02833505]
[1767795302194,0.09946065,91785.0,91762.0,0.02833505]
[1767795302393,0.11036365,91784.0,91764.0,0.010905]
[1767795302689,0.11036365,91784.0,91762.0,0.02833505]
[1767795302690,0.010903,91781.0,91762.0,0.02833505]
[1767795302884,0.11036365,91784.0,91763.0,0.03940305]
[1767795303685,0.11036365,91784.0,91765.0,0.010905]
[1767795303882,0.11036365,91782.0,91765.0,0.010905]
[1767795304088,0.010903,91780.0,91763.0,0.02849805]
[1767795304793,0.09946065,91782.0,91764.0,0.010905]
[1767795304982,0.09946065,91782.0,91766.0,0.010905]
[1767795305390,0.09946065,91782.0,91763.0,0.02849805]
[1767795305795,0.010903,91780.0,91763.0,0.02849805]
[1767795306382,0.09946065,91782.0,91764.0,0.010905]
[1767795306887,0.03195161,91786.0,91768.0,0.010905]
[1767795306888,0.010903,91786.0,91768.0,0.010905]
[1767795307289,0.010903,91784.0,91766.0,0.02721923]
[1767795307696,0.09946065,91786.0,91766.0,0.02721923]
[1767795307997,0.010903,91785.0,91767.0,0.03778682]
[1767795308296,0.09946065,91792.0,91776.0,0.010904]
[1767795308595,0.09946065,91789.0,91772.0,0.103624]
[1767795309992,0.10369412,91784.0,91772.0,0.09272]
[1767795310192,0.09279112,91779.0,91761.0,0.03713963]
[1767795310499,0.09279112,91777.0,91762.0,0.09272]
[1767795310698,0.10369512,91777.0,91762.0,0.09272]
[1767795310998,0.103622,91792.0,91754.0,0.010906]
[1767795310999,0.12498091,91771.0,91754.0,0.010906]
[1767795311200,0.09279112,91768.0,91755.0,0.09272]
[1767795312194,0.09279112,91768.0,91755.0,0.103626]
[1767795312589,0.09279112,91768.0,91757.0,0.010906]
[1767795312795,0.09279112,91777.0,91759.0,0.010906]
[1767795312996,0.09279112,91777.0,91755.0,0.49272]
[1767795312997,0.19641412,91781.0,91760.0,0.02397918]
[1767795313398,0.09279112,91787.0,91764.0,0.02397918]
[1767795313585,0.010903,91786.0,91769.0,0.010905]
[1767795313792,0.010902,91792.0,91775.0,0.010904]
[1767795313989,0.09279112,91793.0,91775.0,0.010904]
[1767795314395,0.09279112,91793.0,91777.0,0.010904]
[1767795314590,0.09279112,91793.0,91775.0,0.09272]
[1767795315398,0.010902,91792.0,91775.0,0.09272]
[1767795315597,0.09279112,91793.0,91775.0,0.09272]
[1767795315999,0.010902,91792.0,91775.0,0.09272]
[1767795316194,0.09279112,91793.0,91775.0,0.09272]
[1767795316396,0.09279112,91782.0,91767.0,0.010905]
[1767795316586,0.09279112,91782.0,91771.0,0.09272]
[1767795318494,0.09279112,91789.0,91771.0,0.103624]
[1767795318692,0.09279112,91789.0,91773.0,0.010904]
[1767795318895,0.09279112,91796.0,91774.0,0.010904]
[1767795319094,0.09279112,91796.0,91776.0,0.010904]
[1767795319303,0.09279112,91796.0,91778.0,0.010903]
[1767795319504,0.09279112,91796.0,91780.0,0.010903]
[1767795319908,0.09279112,91795.0,91772.0,0.02445389]
[1767795320096,0.09279112,91793.0,91772.0,0.02445389]
[1767795320298,0.09279112,91789.0,91773.0,0.09272]
[1767795320498,0.010902,91794.0,91779.0,0.14264833]
[1767795320705,0.010902,91793.0,91780.0,0.09272]
[1767795321006,0.10369312,91793.0,91780.0,0.23536833]
[1767795321200,0.09279112,91793.0,91780.0,0.23536833]
[1767795322302,0.09279112,91793.0,91764.0,0.20948]
[1767795322303,0.09279112,91783.0,91761.0,0.02408774]
[1767795322497,0.09279112,91782.0,91762.0,0.09272]
[1767795322899,0.09279112,91782.0,91766.0,0.010905]
[1767795323302,0.09279112,91782.0,91768.0,0.010905]
[1767795324196,0.09279112,91782.0,91763.0,0.4]
[1767795324400,0.12498091,91772.0,91763.0,0.06146583]
[1767795324613,0.09279112,91770.0,91761.0,0.09272]
[1767795324903,0.09279112,91770.0,91755.0,0.010906]
[1767795325108,0.09279112,91770.0,91756.0,0.09272]
[1767795326205,0.09279112,91776.0,91757.0,0.010906]
[1767795326903,0.09279112,91776.0,91762.0,0.010905]
[1767795327207,0.09279112,91784.0,91766.0,0.010905]
[1767795327408,0.09279112,91784.0,91768.0,0.010905]
[1767795327703,0.09279112,91784.0,91768.0,0.103625]
[1767795328008,0.09279112,91784.0,91768.0,0.09272]
[1767795328205,0.09279112,91790.0,91771.0,0.03197665]
[1767795328407,0.09279112,91806.0,91790.0,0.010902]
[1767795328595,0.09279112,91806.0,91786.0,0.03197665]
[1767795328596,0.09279112,91806.0,91787.0,0.12469665]
[1767795328801,0.09279112,91806.0,91788.0,0.010902]
[1767795329005,0.09279112,91817.0,91796.0,0.03197665]
[1767795329311,0.10369012,91816.0,91801.0,0.010901]
[1767795329512,0.00217797,91829.0,91806.0,0.0109]
[1767795329513,0.010898,91823.0,91806.0,0.0109]
[1767795329912,0.010898,91825.0,91806.0,0.0109]
[1767795330119,0.010898,91825.0,91805.0,0.10362]
[1767795330417,0.010898,91825.0,91805.0,0.05362]
[1767795330614,0.010899,91820.0,91805.0,0.04272]
[1767795331113,0.03218979,91817.0,91797.0,0.010901]
[1767795331301,0.03218979,91817.0,91799.0,0.010901]
[1767795331613,0.09279112,91816.0,91799.0,0.010901]
[1767795332006,0.09279112,91816.0,91798.0,0.09272]
[1767795332408,0.09238522,91826.0,91803.0,0.02923946]
[1767795332608,0.09238522,91826.0,91805.0,0.02923946]
[1767795332808,0.09238522,91826.0,91806.0,0.0109]
[1767795333008,0.09238522,91822.0,91799.0,0.11972338]
[1767795333204,0.09238522,91822.0,91799.0,0.02923946]
[1767795333411,0.09238522,91818.0,91801.0,0.010901]
[1767795333606,0.09238522,91818.0,91802.0,0.09272]
[1767795335017,0.09238522,91818.0,91805.0,0.0109]
[1767795335413,0.10328322,91827.0,91807.0,0.0109]
[1767795335613,0.10328322,91827.0,91807.0,0.04013946]
[1767795336019,0.10328322,91827.0,91807.0,0.0109]
[1767795336918,0.09238522,91827.0,91807.0,0.0109]
[1767795337119,0.010898,91826.0,91804.0,0.0109]
[1767795337319,0.10328322,91826.0,91804.0,0.0109]
[1767795337712,0.09238522,91826.0,91806.0,0.0109]
[1767795337914,0.10328322,91826.0,91806.0,0.0109]
[1767795338314,0.09238522,91826.0,91806.0,0.0109]
[1767795338710,0.09238522,91826.0,91804.0,0.11972338]
[1767795338910,0.09238522,91826.0,91810.0,0.0109]
[1767795339119,0.09238522,91826.0,91809.0,0.0109]
[1767795339511,0.09238522,91826.0,91806.0,0.0109]
[1767795339712,0.10328422,91814.0,91794.0,0.010902]
[1767795339913,0.09238522,91814.0,91795.0,0.09268]
[1767795340314,0.09238522,91809.0,91796.0,0.09268]
[1767795343017,0.09238522,91809.0,91784.0,0.02923946]
[1767795343225,0.09238522,91809.0,91759.0,0.010906]
[1767795343226,0.09238522,91801.0,91785.0,0.09268]
[1767795343424,0.09268,91817.0,91786.0,0.09268]
[1767795343425,0.09238522,91808.0,91786.0,0.09268]
[1767795343611,0.09238522,91808.0,91792.0,0.010902]
[1767795343815,0.09238522,91808.0,91789.0,0.010902]
[1767795344224,0.09238522,91808.0,91793.0,0.010902]
[1767795344520,0.09238522,91815.0,91800.0,0.010901]
[1767795344827,0.09238522,91815.0,91799.0,0.010901]